bitfinex/quotes_BTCUSD_20250428
["timestamp","ask_amount","ask_price","bid_price","bid_amount"]
[1745854716482,0.34,93909.0,93902.0,0.03025618]
[1745854716702,0.34,93907.0,93902.0,0.03025618]
[1745854717580,0.001,93905.0,93902.0,0.03025618]
[1745854717810,0.001,93905.0,93903.0,0.10689014]
[1745854718850,0.34,93919.0,93903.0,0.10689014]
[1745854719094,0.002,93907.0,93904.0,0.03528123]
[1745854719302,0.002,93907.0,93905.0,0.10689014]
[1745854719533,0.002,93907.0,93906.0,0.00212954]
[1745854719762,0.0531,93929.0,93906.0,0.10901968]
[1745854720027,0.0531,93929.0,93907.0,0.11471615]
[1745854720271,0.0531,93929.0,93908.0,0.01521269]
[1745854720505,0.0531,93929.0,93909.0,0.10689014]
[1745854722252,0.0531,93929.0,93910.0,0.0499]
[1745854722459,0.33132913,93930.0,93911.0,0.12143099]
[1745854723152,0.0008472,93942.0,93913.0,0.01454085]
[1745854723365,0.0008472,93942.0,93920.0,0.10689014]
[1745854723571,0.0008472,93942.0,93920.0,0.12143099]
[1745854723748,0.33132913,93940.0,93920.0,0.12143099]
[1745854724168,0.33132913,93930.0,93920.0,0.10689014]
[1745854724982,0.33132913,93930.0,93920.0,0.21889014]
[1745854725184,0.0571,93939.0,93920.0,0.21989014]
[1745854725381,0.33132913,93930.0,93920.0,0.24840065]
[1745854725793,0.33132913,93930.0,93920.0,0.24740065]
[1745854726612,0.33132913,93930.0,93920.0,0.25522666]
[1745854726823,0.0571,93939.0,93920.0,0.25522666]
[1745854727033,0.004,93939.0,93920.0,0.26976751]
[1745854727282,0.004,93939.0,93920.0,0.36426751]
[1745854727883,5.896e-05,93921.0,93920.0,0.36426751]
[1745854728090,0.00081373,93923.0,93921.0,0.01454085]
[1745854728293,0.00081373,93923.0,93922.0,0.47753774]
[1745854729939,0.00081373,93923.0,93922.0,0.48153774]
[1745854730402,0.00093544,93923.0,93922.0,0.48153774]
[1745854732233,0.00080135,93923.0,93922.0,0.48153774]
[1745854732463,0.00080135,93923.0,93922.0,0.48936375]
[1745854732889,0.00080135,93923.0,93922.0,0.53656375]
[1745854733741,0.00080135,93923.0,93922.0,0.58166375]
[1745854733949,0.004,93939.0,93934.0,0.10734085]
[1745854734159,0.004,93939.0,93934.0,0.22771137]
[1745854734419,0.004,93939.0,93934.0,0.22558274]
[1745854735806,0.004,93939.0,93934.0,0.22958274]
[1745854736410,0.004,93939.0,93934.0,0.23058274]
[1745854736826,0.004,93939.0,93934.0,0.62058274]
[1745854737042,0.004,93939.0,93934.0,0.56958274]
[1745854737261,0.004,93939.0,93934.0,0.22958274]
[1745854737673,0.004,93939.0,93934.0,0.34270274]
[1745854738317,0.004,93969.0,93943.0,0.01454085]
[1745854738534,0.004,93969.0,93950.0,0.17033099]
[1745854740591,0.0006961,93951.0,93950.0,0.28341099]
[1745854741036,0.0006961,93951.0,93950.0,0.33231099]
[1745854741265,0.004,93969.0,93950.0,0.36554209]
[1745854741478,0.004,93969.0,93954.0,0.01454085]
[1745854741687,0.00098486,93959.0,93958.0,0.12143099]
[1745854742137,0.00098486,93959.0,93958.0,0.10689014]
[1745854742557,0.00098486,93959.0,93958.0,0.21997014]
[1745854742761,0.00098486,93959.0,93958.0,0.24704049]
[1745854742978,0.00098486,93959.0,93958.0,0.13496049]
[1745854743207,0.00098486,93959.0,93958.0,0.22097014]
[1745854743838,0.00098486,93959.0,93958.0,0.001]
[1745854744044,0.00098486,93959.0,93958.0,0.11408]
[1745854744660,0.00098486,93959.0,93958.0,0.11308]
[1745854744871,0.00098486,93959.0,93955.0,0.00463336]
[1745854745128,0.00098486,93959.0,93958.0,0.11308]
[1745854745376,0.00098486,93959.0,93958.0,0.12485134]
[1745854746850,0.00098486,93959.0,93958.0,0.23174148]
[1745854747303,0.00098486,93959.0,93958.0,0.23637484]
[1745854749006,0.00098486,93959.0,93958.0,0.25091569]
[1745854749212,0.00098486,93959.0,93958.0,0.29641569]
[1745854749424,0.00098486,93959.0,93958.0,0.28187484]
[1745854749657,0.00098486,93959.0,93958.0,0.23637484]
[1745854749865,0.00098486,93959.0,93958.0,0.12329484]
[1745854750076,0.00098486,93959.0,93958.0,0.23637484]
[1745854750906,0.00098486,93959.0,93958.0,0.23737484]
[1745854751332,0.00098486,93959.0,93958.0,0.2256035]
[1745854752111,0.00098486,93959.0,93958.0,0.2246035]
[1745854752550,0.00098486,93959.0,93958.0,0.00463336]
[1745854752742,0.10888486,93959.0,93958.0,0.00463336]
[1745854752938,1.15254486,93959.0,93958.0,0.00463336]
[1745854753143,1.1025044,93959.0,93958.0,0.00463336]
[1745854753371,1.10233428,93959.0,93958.0,0.00463336]
[1745854753907,1.51682269,93959.0,93958.0,0.00463336]
[1745854754381,1.51682269,93959.0,93938.0,0.11308]
[1745854754382,0.34,93958.0,93938.0,0.11308]
[1745854754609,0.34,93947.0,93939.0,0.011308]
[1745854754825,0.34,93945.0,93939.0,0.011308]
[1745854755385,0.34,93943.0,93938.0,0.11308]
[1745854755790,0.00734254,93942.0,93938.0,0.11308]
[1745854756454,0.00734254,93942.0,93928.0,0.00463336]
[1745854756455,0.0477,93940.0,93928.0,0.00463336]
[1745854756660,0.34,93937.0,93928.0,0.00463336]
[1745854756859,0.34,93935.0,93922.0,0.11308]
[1745854756990,0.34,93931.0,93922.0,0.11308]
[1745854757202,0.34,93929.0,93922.0,0.11308]
[1745854757427,0.34,93927.0,93922.0,0.11308]
[1745854757829,0.34,93925.0,93922.0,0.11308]
[1745854758023,0.60086875,93924.0,93922.0,0.11308]
[1745854758226,0.01962675,93924.0,93922.0,0.11308]
[1745854758428,0.01962675,93923.0,93922.0,0.11308]
[1745854758903,0.02586341,93923.0,93922.0,0.11308]
[1745854759867,0.01962675,93923.0,93922.0,0.11308]
[1745854760224,0.01962675,93923.0,93922.0,0.21997014]
[1745854760423,0.01962675,93923.0,93922.0,0.22297014]
[1745854760633,0.01962675,93923.0,93922.0,0.24577284]
[1745854760841,0.01962675,93923.0,93922.0,0.24277284]
[1745854761079,0.01962675,93923.0,93922.0,0.12969284]
[1745854761287,0.01962675,93923.0,93922.0,0.11089014]
[1745854761693,0.01962675,93923.0,93922.0,0.1155235]
[1745854761898,0.01948265,93923.0,93922.0,0.1155235]
[1745854763222,0.01948265,93923.0,93922.0,0.00463336]
[1745854763386,0.01948265,93923.0,93922.0,0.00663336]
[1745854763953,0.01948265,93923.0,93922.0,0.00463336]
[1745854764162,0.01948265,93923.0,93922.0,0.00663336]
[1745854764794,0.01948265,93923.0,93922.0,0.00463336]
[1745854765252,0.01948265,93923.0,93922.0,0.00563336]
[1745854765418,0.01948265,93923.0,93922.0,0.001]
[1745854765623,0.36161377,93923.0,93922.0,0.001]
[1745854765830,1.66148765,93923.0,93922.0,0.001]
[1745854766255,1.02687966,93923.0,93922.0,0.001]
[1745854766735,1.0342222,93923.0,93922.0,0.001]
[1745854766942,1.0342222,93923.0,93915.0,0.0004235]
[1745854766943,0.34,93922.0,93915.0,0.0004235]
[1745854767153,1.054255,93922.0,93920.0,0.015]
[1745854767364,0.96606901,93921.0,93920.0,0.015]
[1745854767823,0.97341155,93921.0,93920.0,0.015]
[1745854768693,0.96039455,93921.0,93920.0,0.015]
[1745854769810,0.96039455,93921.0,93896.0,0.0496]
[1745854769811,0.34,93908.0,93884.0,0.0004235]
[1745854770043,0.34,93893.0,93878.0,0.00045723]
[1745854770272,0.55304019,93879.0,93878.0,0.00045723]
[1745854770502,0.63546752,93879.0,93878.0,0.00057894]
[1745854770727,0.34,93870.0,93866.0,0.00012171]
[1745854770948,0.34,93868.0,93866.0,0.00012171]
[1745854771174,5.47834859,93867.0,93866.0,0.00024354]
[1745854771424,5.51285812,93867.0,93866.0,0.00012183]
[1745854771667,0.34,93866.0,93860.0,0.0004237]
[1745854771901,0.34,93864.0,93860.0,0.0004237]
[1745854772120,0.34,93862.0,93860.0,0.0004237]
[1745854772344,5.50873493,93861.0,93860.0,0.0004237]
[1745854772596,5.51283782,93861.0,93860.0,0.0004237]
[1745854772845,5.52018036,93861.0,93860.0,0.0004237]
[1745854773528,5.56928036,93861.0,93860.0,0.0004237]
[1745854773766,5.53943025,93861.0,93860.0,0.0004237]
[1745854774158,5.33172225,93861.0,93860.0,0.0004237]
[1745854774369,5.3511407,93861.0,93860.0,0.0004237]
[1745854774783,2.78921705,93861.0,93860.0,0.0004237]
[1745854774985,2.579087,93861.0,93860.0,0.0004237]
[1745854775783,0.34,93856.0,93835.0,0.002]
[1745854776009,0.34,93844.0,93835.0,0.0021072]
[1745854776180,0.34,93842.0,93835.0,0.0021072]
[1745854776473,0.01941845,93844.0,93838.0,0.01454085]
[1745854776674,0.01941845,93844.0,93840.0,0.12143099]
[1745854776876,0.00623401,93879.0,93842.0,0.01454085]
[1745854777078,0.003,93856.0,93844.0,0.01454085]
[1745854777276,0.003,93856.0,93846.0,0.01454085]
[1745854777544,0.00623401,93879.0,93848.0,0.01454085]
[1745854777728,0.02676099,93887.0,93851.0,0.01454085]
[1745854777952,0.49756736,93880.0,93853.0,0.01454085]
[1745854778165,0.34,93879.0,93855.0,0.01454085]
[1745854778367,0.35941845,93879.0,93856.0,0.10689014]
[1745854778542,0.35941845,93879.0,93857.0,0.0121431]
[1745854778771,0.01941845,93879.0,93858.0,0.10689014]
[1745854778953,0.06927304,93889.0,93858.0,0.10689014]
[1745854779197,0.84306,93888.0,93879.0,0.00022215]
[1745854779408,0.35941845,93887.0,93879.0,0.00022215]
[1745854779624,0.34,93885.0,93879.0,0.00022215]
[1745854779833,0.34,93883.0,93879.0,0.00022215]
[1745854780060,0.34,93881.0,93879.0,0.00022215]
[1745854781308,0.36976099,93889.0,93879.0,0.00022215]
[1745854781522,0.833966,93888.0,93879.0,0.10711229]
[1745854781730,0.02976099,93889.0,93880.0,0.01071123]
[1745854781936,0.02976099,93889.0,93879.0,0.00022215]
[1745854782142,0.00734254,93889.0,93879.0,0.00022215]
[1745854782346,0.002,93881.0,93879.0,0.00022215]
[1745854782756,0.05323707,93897.0,93879.0,0.00022215]
[1745854783188,0.002,93889.0,93879.0,0.00022215]
[1745854783595,0.34,93895.0,93879.0,0.11026215]
[1745854784062,0.34,93893.0,93879.0,0.11026215]
[1745854785361,0.05323707,93897.0,93879.0,0.11026215]
[1745854785585,0.34,93895.0,93879.0,0.11026215]
[1745854785794,0.34,93893.0,93879.0,0.11026215]
[1745854786197,0.341,93893.0,93879.0,0.11026215]
[1745854786410,0.341,93893.0,93879.0,0.1217517]
[1745854786627,0.341,93893.0,93880.0,0.10902034]
[1745854786865,0.341,93893.0,93880.0,0.10689014]
[1745854787064,0.001,93893.0,93880.0,0.10689014]
[1745854788359,0.05323707,93897.0,93880.0,0.10689014]
[1745854788588,0.001,93893.0,93880.0,0.10689014]
[1745854789018,0.001,93893.0,93881.0,0.02171523]
[1745854789255,0.34,93895.0,93882.0,0.1115235]
[1745854789662,0.02676099,93896.0,93882.0,0.1115235]
[1745854789875,0.01941845,93895.0,93882.0,0.1115235]
[1745854790111,0.01941845,93895.0,93883.0,0.00213003]
[1745854790334,0.05323707,93897.0,93885.0,0.01454085]
[1745854790552,0.05323707,93897.0,93884.0,0.18451649]
[1745854790553,0.001,93895.0,93888.0,0.01454085]
[1745854790771,0.001,93895.0,93890.0,0.01454085]
[1745854790988,0.001,93895.0,93892.0,0.01454085]
[1745854791197,0.001,93895.0,93894.0,0.01454085]
[1745854791422,0.001,93895.0,93894.0,0.12143099]
[1745854791889,0.00013707,93897.0,93894.0,0.12143099]
[1745854792134,0.00013707,93897.0,93896.0,0.01454085]
[1745854792317,0.00013707,93897.0,93896.0,0.12143099]
[1745854793473,0.00013707,93897.0,93896.0,0.13881409]
[1745854794100,0.00013707,93897.0,93896.0,0.14344745]
[1745854794746,0.00013707,93897.0,93896.0,0.1115235]
[1745854794963,0.00013707,93897.0,93896.0,0.00463336]
[1745854795165,0.00013707,93897.0,93896.0,0.00863336]
[1745854795373,0.34013707,93897.0,93896.0,0.00863336]
[1745854795800,0.34013707,93897.0,93896.0,0.00463336]
[1745854796005,0.34113707,93897.0,93896.0,0.00463336]
[1745854796434,0.34113707,93897.0,93896.0,0.1115235]
[1745854797050,0.34013707,93897.0,93896.0,0.1115235]
[1745854797473,0.34013707,93897.0,93896.0,0.1608235]
[1745854800003,0.35955552,93897.0,93896.0,0.12415084]
[1745854800411,0.35933137,93897.0,93896.0,0.1125235]
[1745854801457,0.01134254,93909.0,93897.0,0.01454085]
[1745854801458,0.01941845,93908.0,93897.0,0.01454085]
[1745854801663,0.01941845,93908.0,93899.0,0.01454085]
[1745854801875,0.004,93909.0,93901.0,0.01454085]
[1745854802086,0.004,93909.0,93902.0,0.10689014]
[1745854802654,0.002,93908.0,93902.0,0.10689014]
[1745854803062,0.004,93909.0,93902.0,0.10689014]
[1745854803869,0.004,93909.0,93898.0,0.0453]
[1745854803870,0.34,93907.0,93898.0,0.0453]
[1745854804268,0.34,93905.0,93883.0,0.0488]
[1745854804448,0.34,93905.0,93902.0,0.001]
[1745854804449,0.34,93903.0,93902.0,0.001]
[1745854804657,0.86372645,93903.0,93902.0,0.001]
[1745854804893,0.74176999,93903.0,93902.0,0.001]
[1745854805097,0.36676099,93903.0,93883.0,0.0488]
[1745854805307,0.34,93901.0,93883.0,0.0488]
[1745854805509,0.02676099,93900.0,93883.0,0.0488]
[1745854805952,0.02676099,93900.0,93895.0,0.22529414]
[1745854806156,0.01941845,93899.0,93895.0,0.22529414]
[1745854806373,0.01941845,93899.0,93895.0,0.10764]
[1745854806622,0.34,93897.0,93895.0,0.10764]
[1745854807293,0.00734254,93896.0,93895.0,0.10764]
[1745854807462,0.03299725,93896.0,93895.0,0.10764]
[1745854809085,0.03299725,93896.0,93895.0,0.10864]
[1745854809355,0.03299725,93896.0,93895.0,0.001]
[1745854809982,0.37299725,93896.0,93895.0,0.001]
[1745854810873,0.34,93895.0,93891.0,0.10764]
[1745854811094,0.02676099,93894.0,93891.0,0.10764]
[1745854811299,0.02676099,93894.0,93883.0,0.0488]
[1745854811493,0.01941845,93893.0,93887.0,0.21453014]
[1745854812049,0.02676099,93892.0,93887.0,0.21453014]
[1745854812284,0.03299725,93892.0,93887.0,0.21453014]
[1745854812509,0.01941845,93891.0,93887.0,0.21453014]
[1745854812712,0.01941845,93891.0,93887.0,0.21653014]
[1745854813119,0.03280012,93890.0,93887.0,0.21653014]
[1745854813313,0.03280012,93890.0,93888.0,0.03122301]
[1745854813550,0.03280012,93890.0,93889.0,0.10689014]
[1745854813749,0.00623626,93890.0,93889.0,0.10689014]
[1745854814623,0.02587617,93890.0,93889.0,0.10689014]
[1745854814824,0.02587617,93890.0,93889.0,0.14103545]
[1745854815028,0.02587617,93890.0,93889.0,0.14303545]
[1745854818127,0.02587617,93890.0,93889.0,0.15970627]
[1745854818346,0.02587617,93890.0,93889.0,0.31474627]
[1745854818552,0.02587617,93890.0,93889.0,0.3126163]
[1745854820017,0.02587617,93890.0,93889.0,0.3106163]
[1745854820220,0.02587617,93890.0,93889.0,0.2029763]
[1745854820427,0.02587617,93890.0,93889.0,0.3136163]
[1745854820843,0.02587617,93890.0,93889.0,0.26189014]
[1745854821277,0.02587617,93890.0,93889.0,0.26589014]
[1745854822392,0.02587617,93890.0,93889.0,0.26189014]
[1745854823523,0.02587617,93890.0,93889.0,0.26489014]
[1745854826562,0.03324945,93890.0,93889.0,0.26489014]
[1745854826776,0.03324945,93890.0,93889.0,0.29606915]
[1745854829299,0.02587617,93890.0,93889.0,0.29490915]
[1745854831908,0.03324945,93890.0,93889.0,0.29490915]
[1745854833172,0.02587617,93890.0,93889.0,0.29490915]
[1745854834028,0.03324945,93890.0,93889.0,0.29490915]
[1745854837272,0.03324945,93890.0,93889.0,0.21633014]
[1745854837481,0.03324945,93890.0,93889.0,0.10944]
[1745854838303,0.06273728,93890.0,93889.0,0.10944]
[1745854838541,0.06273728,93890.0,93889.0,0.10644]
[1745854838747,0.19474728,93890.0,93889.0,0.10644]
[1745854838964,2.0302992,93890.0,93889.0,0.10744]
[1745854839165,2.1611832,93890.0,93889.0,0.001]
[1745854839373,2.2065832,93890.0,93889.0,0.001]
[1745854839834,0.34,93889.0,93878.0,0.10644]
[1745854840057,0.08471895,93888.0,93878.0,0.10644]
[1745854840343,3.80804711,93887.0,93878.0,0.10644]
[1745854840560,0.34,93885.0,93878.0,0.10644]
[1745854840784,0.34,93883.0,93878.0,0.10644]
[1745854841094,0.34,93881.0,93878.0,0.10644]
[1745854841308,1.69092991,93880.0,93878.0,0.10644]
[1745854841519,1.72041774,93880.0,93878.0,0.10644]
[1745854841730,0.74453374,93880.0,93878.0,0.10644]
[1745854842149,0.75190702,93880.0,93878.0,0.10644]
[1745854842544,0.75190702,93880.0,93879.0,0.00122215]
[1745854842956,0.34,93879.0,93878.0,0.06481172]
[1745854843091,0.74236985,93879.0,93878.0,0.06481172]
[1745854843291,0.76938304,93879.0,93878.0,0.06481172]
[1745854843702,0.76938304,93879.0,93857.0,0.0125669]
[1745854843703,0.76938304,93879.0,93862.0,0.10644]
[1745854843908,0.33112945,93869.0,93862.0,0.10644]
[1745854844146,2.39705814,93868.0,93862.0,0.10644]
[1745854844363,1.86778665,93867.0,93857.0,0.0004238]
[1745854844787,1.76333312,93866.0,93857.0,0.0004238]
[1745854844992,4.14825143,93865.0,93857.0,0.0004238]
[1745854845200,5.18337534,93864.0,93857.0,0.0004238]
[1745854845411,0.34,93862.0,93857.0,0.0004238]
[1745854845620,0.34,93860.0,93857.0,0.0004238]
[1745854845833,1.179987,93860.0,93857.0,0.0004238]
[1745854846046,1.18736028,93860.0,93857.0,0.0004238]
[1745854846257,1.18745271,93860.0,93857.0,0.0004238]
[1745854846677,1.20709262,93860.0,93857.0,0.0004238]
[1745854847941,1.31398276,93860.0,93857.0,0.0004238]
[1745854848360,1.31598276,93860.0,93857.0,0.0004238]
[1745854849185,0.47599576,93860.0,93857.0,0.0004238]
[1745854849381,3.79988776,93860.0,93857.0,0.0004238]
[1745854849604,3.92055576,93860.0,93857.0,0.0004238]
[1745854850005,3.96835576,93860.0,93857.0,0.0004238]
[1745854851143,3.9744224,93860.0,93857.0,0.0004238]
[1745854851471,4.0195224,93860.0,93857.0,0.0004238]
[1745854853179,0.34,93842.0,93834.0,0.0004238]
[1745854853387,5.49999014,93842.0,93834.0,0.0004238]
[1745854853597,5.54779014,93842.0,93834.0,0.0004238]
[1745854854011,5.60336025,93842.0,93834.0,0.0004238]
[1745854854645,5.61073353,93842.0,93834.0,0.0004238]
[1745854854919,5.65683353,93842.0,93834.0,0.0004238]
[1745854855112,5.62696997,93842.0,93834.0,0.0004238]
[1745854855319,4.52231897,93842.0,93834.0,0.0004238]
[1745854855544,4.19273697,93842.0,93834.0,0.0004238]
[1745854855747,4.09117897,93842.0,93834.0,0.0004238]
[1745854855960,4.09017897,93842.0,93834.0,0.0004238]
[1745854856183,4.09417897,93842.0,93834.0,0.0004238]
[1745854859920,0.34,93833.0,93828.0,0.0004239]
[1745854860181,0.00737328,93833.0,93829.0,0.14976]
[1745854860405,0.00737328,93833.0,93830.0,0.02003071]
[1745854860622,0.00737328,93833.0,93831.0,0.15659014]
[1745854861048,0.003,93837.0,93831.0,0.15659014]
[1745854861517,0.33112945,93841.0,93832.0,0.10356]
[1745854861724,0.33112945,93850.0,93832.0,0.21045014]
[1745854861939,0.34,93841.0,93832.0,0.21045014]
[1745854862144,0.01963991,93841.0,93832.0,0.21045014]
[1745854862992,0.34,93841.0,93832.0,0.21045014]
[1745854863190,0.34,93841.0,93832.0,0.10356]
[1745854863426,0.34,93841.0,93833.0,0.0483]
[1745854863626,0.01963991,93841.0,93835.0,0.0452]
[1745854863781,0.01963991,93841.0,93836.0,0.10689014]
[1745854863993,0.01963991,93841.0,93837.0,0.0483]
[1745854864401,0.01963991,93841.0,93835.0,0.0452]
[1745854864402,0.34,93839.0,93835.0,0.0452]
[1745854864609,0.34,93839.0,93837.0,0.10356]
[1745854864827,0.291186,93838.0,93837.0,0.10356]
[1745854865028,0.34,93837.0,93829.0,0.0483]
[1745854865231,0.34,93837.0,93830.0,0.10356]
[1745854865385,0.01338103,93838.0,93830.0,0.10356]
[1745854865586,0.00731439,93838.0,93830.0,0.10356]
[1745854865789,0.37302094,93839.0,93830.0,0.10356]
[1745854865994,0.35963991,93837.0,93830.0,0.10356]
[1745854866201,0.35963991,93837.0,93831.0,0.21045014]
[1745854866409,0.34,93837.0,93831.0,0.25715014]
[1745854866814,0.01963991,93836.0,93831.0,0.25715014]
[1745854867431,0.01963991,93835.0,93831.0,0.25715014]
[1745854867666,0.00606664,93834.0,93831.0,0.25715014]
[1745854867865,0.02570655,93834.0,93831.0,0.25715014]
[1745854868296,0.01963991,93833.0,93831.0,0.25815014]
[1745854868467,0.01963991,93832.0,93831.0,0.0477]
[1745854868683,0.01963991,93832.0,93831.0,0.15026]
[1745854868905,0.02570655,93832.0,93831.0,0.15026]
[1745854869098,0.02570655,93832.0,93831.0,0.15226]
[1745854869519,0.02570655,93832.0,93831.0,0.31956085]
[1745854870160,0.02570655,93832.0,93831.0,0.72816085]
[1745854870370,0.02570655,93832.0,93831.0,0.71285014]
[1745854870579,0.02570655,93832.0,93831.0,0.71485014]
[1745854871428,0.02570655,93832.0,93831.0,0.71285014]
[1745854871845,0.02570655,93832.0,93831.0,0.71485014]
[1745854873103,0.02570655,93832.0,93831.0,0.71285014]
[1745854873514,0.02570655,93832.0,93831.0,0.78721986]
[1745854874618,0.02570655,93832.0,93831.0,0.68365986]
[1745854874828,0.02570655,93832.0,93831.0,0.71585014]
[1745854875086,0.02570655,93832.0,93831.0,0.61229014]
[1745854875299,0.02570655,93832.0,93831.0,0.71585014]
[1745854876535,0.02570655,93832.0,93831.0,0.71285014]
[1745854876755,0.02570655,93832.0,93831.0,0.71385014]
[1745854879267,0.02570655,93832.0,93831.0,0.60696]
[1745854880977,0.03302094,93832.0,93831.0,0.60696]
[1745854882034,0.03302094,93832.0,93831.0,0.5034]
[1745854882286,0.03302094,93832.0,93831.0,0.60696]
[1745854883842,0.02570655,93832.0,93831.0,0.60696]
[1745854884334,0.02570655,93832.0,93831.0,0.71385014]
[1745854884538,0.02570655,93832.0,93831.0,0.78531986]
[1745854885767,0.02570655,93832.0,93831.0,0.71385014]
[1745854887280,0.02570655,93832.0,93831.0,0.62483099]
[1745854887493,0.0478,93886.0,93831.0,0.62483099]
[1745854887494,0.04996036,93852.0,93843.0,0.01454085]
[1745854887696,0.04996036,93852.0,93850.0,0.01454085]
[1745854887899,0.04996036,93852.0,93851.0,0.53689099]
[1745854888103,0.04996036,93852.0,93851.0,0.94749099]
[1745854888964,0.04996036,93852.0,93851.0,1.05077099]
[1745854889177,0.04996036,93852.0,93851.0,1.15766113]
[1745854889799,0.0008482,93872.0,93853.0,0.0465]
[1745854890008,0.0008482,93872.0,93857.0,0.01454085]
[1745854890190,0.0008482,93872.0,93859.0,0.01454085]
[1745854890438,0.0008482,93872.0,93859.0,0.12143099]
[1745854890642,0.0008482,93872.0,93859.0,0.13868712]
[1745854892523,0.0008482,93872.0,93859.0,0.14168712]
[1745854892736,0.0008482,93872.0,93859.0,0.23841742]
[1745854892946,0.0008482,93872.0,93859.0,0.23628712]
[1745854893368,0.0008482,93872.0,93859.0,0.23328712]
[1745854893582,0.0008482,93872.0,93861.0,0.01454085]
[1745854893798,0.0008482,93872.0,93871.0,0.21603099]
[1745854894451,0.0008482,93872.0,93871.0,0.62663099]
[1745854895133,0.0008482,93872.0,93871.0,0.61209014]
[1745854895557,0.0008482,93872.0,93871.0,0.71533014]
[1745854895976,0.0008482,93872.0,93871.0,0.72987099]
[1745854896187,0.0008482,93872.0,93871.0,0.80285809]
[1745854896401,0.0008482,93872.0,93871.0,0.80585809]
[1745854896811,0.0008482,93872.0,93871.0,0.80285809]
[1745854897221,0.0008482,93872.0,93871.0,0.80585809]
[1745854899212,0.0008482,93872.0,93871.0,0.80285809]
[1745854899422,0.0008482,93872.0,93871.0,0.70461809]
[1745854899637,0.0008482,93872.0,93871.0,0.80785809]
[1745854899820,0.0008482,93872.0,93871.0,0.80285809]
[1745854900050,0.0008482,93872.0,93871.0,0.80785809]
[1745854900273,0.002,93892.0,93880.0,0.33112945]
[1745854900490,0.002,93892.0,93883.0,0.01454085]
[1745854900675,0.002,93892.0,93891.0,0.10689014]
[1745854900917,0.002,93892.0,93891.0,0.21893099]
[1745854901371,0.002,93892.0,93891.0,0.62953099]
[1745854901614,0.004,93909.0,93900.0,0.06344085]
[1745854901825,0.004,93909.0,93908.0,0.12143099]
[1745854903086,0.004,93909.0,93908.0,0.12343099]
[1745854905213,0.004,93909.0,93908.0,0.53403099]
[1745854905540,0.004,93909.0,93908.0,0.63471409]
[1745854906096,0.00061271,93910.0,93909.0,0.01454085]
[1745854906297,0.00061271,93910.0,93909.0,0.12143099]
[1745854908185,0.00061271,93910.0,93909.0,0.12443099]
[1745854908356,0.00061271,93910.0,93909.0,0.5986024]
[1745854908837,0.00061271,93910.0,93909.0,0.58406155]
[1745854909372,0.00061271,93910.0,93909.0,0.68726155]
[1745854909780,0.00061271,93910.0,93909.0,0.27666155]
[1745854909989,0.00061271,93910.0,93909.0,0.003]
[1745854910196,0.00061271,93910.0,93909.0,0.21309014]
[1745854910410,0.00061271,93910.0,93909.0,0.21009014]
[1745854911254,0.00061271,93910.0,93909.0,0.1032]
[1745854914799,0.00061271,93910.0,93909.0,0.21009014]
[1745854915001,0.00061271,93910.0,93909.0,0.23131213]
[1745854917296,0.00061271,93910.0,93909.0,0.24585298]
[1745854919650,0.00061271,93910.0,93909.0,0.24685298]
[1745854920066,0.00061271,93910.0,93909.0,0.24585298]
[1745854920486,0.00061271,93910.0,93909.0,0.24785298]
[1745854923469,0.00061271,93910.0,93909.0,0.14465298]
[1745854923726,0.00061271,93910.0,93909.0,0.24805298]
[1745854924413,0.00061271,93910.0,93909.0,0.23351213]
[1745854925716,0.02026803,93910.0,93909.0,0.23351213]
[1745854926162,0.02610866,93910.0,93909.0,0.23351213]
[1745854926423,0.02610866,93910.0,93909.0,0.13011213]
[1745854926662,0.02610866,93910.0,93909.0,0.23351213]
[1745854927135,0.0334324,93910.0,93909.0,0.23351213]
[1745854927618,0.0334324,93910.0,93909.0,0.23151213]
[1745854928290,0.0334324,93910.0,93909.0,0.24605298]
[1745854928940,0.02610866,93910.0,93909.0,0.65765298]
[1745854929156,0.02610866,93910.0,93909.0,0.70455298]
[1745854929382,0.02610866,93910.0,93909.0,0.70355298]
[1745854929605,0.0334324,93910.0,93909.0,0.70555298]
[1745854933176,0.02610866,93910.0,93909.0,0.70555298]
[1745854934435,0.02610866,93910.0,93909.0,0.60215298]
[1745854934645,0.02610866,93910.0,93909.0,0.65865298]
[1745854934856,0.02610866,93910.0,93909.0,0.64411213]
[1745854935331,0.0334324,93910.0,93909.0,0.64411213]
[1745854938639,0.033476,93910.0,93909.0,0.64411213]
[1745854943107,0.033476,93910.0,93909.0,0.54071213]
[1745854943367,0.033476,93910.0,93909.0,0.4126]
[1745854943607,0.033476,93910.0,93909.0,0.516]
[1745854944539,0.033476,93910.0,93909.0,0.62289014]
[1745854944779,0.033476,93910.0,93909.0,0.51749014]
[1745854944989,0.033476,93910.0,93909.0,0.62189014]
[1745854945434,0.033476,93910.0,93909.0,0.68407915]
[1745854945635,0.033476,93910.0,93909.0,0.68307915]
[1745854946282,0.033476,93910.0,93909.0,0.73007915]
[1745854947350,0.033476,93910.0,93909.0,0.74462]
[1745854947759,0.02615226,93910.0,93909.0,0.74462]
[1745854948176,0.00732374,93914.0,93913.0,0.41237643]
[1745854948399,0.00732374,93914.0,93913.0,0.68894621]
[1745854948606,0.04996036,93915.0,93914.0,0.01454085]
[1745854948812,0.0008478,93917.0,93914.0,0.12143099]
[1745854949018,0.0008478,93917.0,93916.0,0.12143099]
[1745854951537,0.0008478,93917.0,93916.0,0.22459099]
[1745854951742,0.0008478,93917.0,93916.0,0.30680161]
[1745854952283,0.0008478,93917.0,93916.0,0.70463719]
[1745854953750,0.0008478,93917.0,93916.0,0.75273719]
[1745854957350,0.0008478,93917.0,93916.0,0.76072393]
[1745854958179,0.0008478,93917.0,93916.0,0.77135259]
[1745854958426,0.0028482,93935.0,93923.0,0.01454085]
[1745854958638,0.00130524,93928.0,93927.0,0.12143099]
[1745854960292,0.02097782,93928.0,93927.0,0.12143099]
[1745854961232,0.02097782,93928.0,93927.0,0.12243099]
[1745854962974,0.02097782,93928.0,93927.0,0.44203099]
[1745854963388,0.00130524,93928.0,93927.0,0.44203099]
[1745854963593,0.00130524,93928.0,93927.0,0.52995487]
[1745854964210,0.00130524,93928.0,93927.0,0.92609465]
[1745854965056,0.00130524,93928.0,93927.0,1.02289465]
[1745854965880,0.00130524,93928.0,93927.0,1.02189465]
[1745854967186,0.00130524,93928.0,93927.0,1.02589465]
[1745854973105,0.00130524,93928.0,93927.0,1.12901465]
[1745854977040,0.00130524,93928.0,93927.0,1.07921465]
[1745854977461,0.02099821,93928.0,93927.0,1.07921465]